bitfinex/quotes_BTCUSD_20260125
["timestamp","ask_amount","ask_price","bid_price","bid_amount"]
[1769310748264,0.03,89127.0,89118.0,0.18243476]
[1769310748609,0.03,89125.0,89118.0,0.18243476]
[1769310748894,0.03,89123.0,89118.0,0.18243476]
[1769310749709,0.03,89127.0,89118.0,0.18243476]
[1769310749911,0.03,89125.0,89118.0,0.18243476]
[1769310750123,0.03,89123.0,89118.0,0.18243476]
[1769310751153,0.03,89126.0,89118.0,0.18243476]
[1769310751453,0.03,89124.0,89118.0,0.18243476]
[1769310752429,0.03,89123.0,89118.0,0.18243476]
[1769310753470,0.03,89132.0,89118.0,0.18243476]
[1769310753672,0.03,89130.0,89118.0,0.18243476]
[1769310753879,0.03,89128.0,89118.0,0.18243476]
[1769310754173,0.03,89126.0,89118.0,0.18243476]
[1769310754340,0.03,89124.0,89118.0,0.18243476]
[1769310755380,0.03,89128.0,89118.0,0.18243476]
[1769310755583,0.03,89126.0,89118.0,0.18243476]
[1769310755821,0.03,89124.0,89118.0,0.18243476]
[1769310756803,0.15385671,89125.0,89118.0,0.18243476]
[1769310757004,0.03,89123.0,89118.0,0.18243476]
[1769310757200,0.14207696,89123.0,89118.0,0.18243476]
[1769310757400,0.03,89121.0,89118.0,0.18243476]
[1769310757626,0.03,89121.0,89118.0,0.0001492]
[1769310758439,0.03,89120.0,89118.0,0.0001492]
[1769310759438,0.03,89120.0,89109.0,0.17073943]
[1769310759439,0.03,89119.0,89111.0,0.18258926]
[1769310759634,0.03,89119.0,89112.0,0.17059023]
[1769310760069,0.03,89119.0,89113.0,0.17059023]
[1769310760275,0.12385671,89127.0,89111.0,4.755e-05]
[1769310760455,0.14207696,89126.0,89112.0,0.35317949]
[1769310760658,0.03,89124.0,89113.0,0.18258926]
[1769310760881,0.03,89124.0,89114.0,0.17059023]
[1769310761693,0.03,89123.0,89114.0,0.17059023]
[1769310762779,0.03,89128.0,89114.0,0.17059023]
[1769310763076,0.03,89126.0,89114.0,0.17059023]
[1769310763262,0.03,89124.0,89114.0,0.17059023]
[1769310764410,0.03,89123.0,89114.0,0.17059023]
[1769310765336,0.03,89122.0,89114.0,0.17059023]
[1769310765749,0.03,89122.0,89111.0,4.755e-05]
[1769310766509,0.03,89126.0,89111.0,4.755e-05]
[1769310766715,0.03,89124.0,89111.0,4.755e-05]
[1769310766914,0.03,89122.0,89111.0,4.755e-05]
[1769310767316,0.03,89122.0,89111.0,0.17063778]
[1769310767912,0.03,89125.0,89111.0,0.17063778]
[1769310768122,0.11207696,89127.0,89111.0,0.17063778]
[1769310768123,0.03,89123.0,89111.0,0.17063778]
[1769310768279,0.03,89121.0,89111.0,0.17063778]
[1769310769316,0.03,89120.0,89111.0,0.17063778]
[1769310770408,0.03,89119.0,89111.0,0.17063778]
[1769310771411,0.03,89118.0,89111.0,0.17063778]
[1769310772226,0.12385671,89126.0,89111.0,0.18263681]
[1769310772441,0.03,89124.0,89112.0,0.17059023]
[1769310772642,0.03,89122.0,89113.0,0.17059023]
[1769310773763,0.03,89121.0,89113.0,0.17059023]
[1769310775090,0.03,89120.0,89113.0,0.17059023]
[1769310775677,0.03,89120.0,89113.0,0.18258926]
[1769310775858,0.03,89120.0,89114.0,0.17059023]
[1769310776036,0.03,89119.0,89115.0,0.18258926]
[1769310776245,0.03,89119.0,89116.0,0.17059023]
[1769310777128,0.03,89127.0,89116.0,0.17059023]
[1769310777369,0.03,89125.0,89116.0,0.17059023]
[1769310777661,0.03,89123.0,89116.0,0.17059023]
[1769310779267,0.03,89127.0,89116.0,0.17059023]
[1769310779428,0.03,89125.0,89116.0,0.17059023]
[1769310779638,0.03,89123.0,89116.0,0.17059023]
[1769310779834,0.03,89123.0,89117.0,0.17059023]
[1769310780677,0.14207696,89124.0,89117.0,0.17059023]
[1769310780880,0.01177975,89125.0,89117.0,0.17059023]
[1769310780881,0.03,89122.0,89117.0,0.17059023]
[1769310781222,0.14207696,89122.0,89117.0,0.17059023]
[1769310781402,0.03,89120.0,89117.0,0.17059023]
[1769310781616,0.14207696,89120.0,89117.0,0.17059023]
[1769310781760,0.11207696,89119.0,89117.0,0.17059023]
[1769310781960,0.01177975,89127.0,89117.0,0.17059023]
[1769310782202,0.21378154,89127.0,89117.0,0.17059023]
[1769310782412,0.11222773,89126.0,89117.0,0.17059023]
[1769310782616,0.12400748,89125.0,89117.0,0.17059023]
[1769310782795,0.11222773,89124.0,89117.0,0.17059023]
[1769310783008,0.12400748,89123.0,89117.0,0.17059023]
[1769310783165,0.11222773,89122.0,89117.0,0.17059023]
[1769310783369,0.11222773,89121.0,89117.0,0.17059023]
[1769310783654,0.11222773,89120.0,89117.0,0.17059023]
[1769310783858,0.11222773,89119.0,89117.0,0.17059023]
[1769310784019,0.10222773,89118.0,89111.0,0.17002878]
[1769310784220,0.01177975,89127.0,89111.0,0.17002878]
[1769310784638,0.01177975,89127.0,89111.0,0.35543513]
[1769310784842,0.01177975,89127.0,89112.0,0.16998123]
[1769310791913,0.03,89126.0,89112.0,0.16998123]
[1769310792065,0.03,89124.0,89112.0,0.16998123]
[1769310792271,0.03,89122.0,89112.0,0.16998123]
[1769310793392,0.03,89126.0,89112.0,0.16998123]
[1769310793699,0.03,89124.0,89112.0,0.16998123]
[1769310793858,0.03,89122.0,89112.0,0.16998123]
[1769310794883,0.03,89121.0,89112.0,0.16998123]
[1769310796042,0.03,89120.0,89112.0,0.16998123]
[1769310796941,0.03,89119.0,89112.0,0.16998123]
[1769310798145,0.03,89118.0,89112.0,0.16998123]
[1769310799073,0.03,89117.0,89112.0,0.16998123]
[1769310799483,0.03,89117.0,89112.0,0.35969139]
[1769310800076,0.03,89116.0,89112.0,0.35969139]
[1769310801102,0.03,89124.0,89112.0,0.35969139]
[1769310801423,0.03,89122.0,89112.0,0.35969139]
[1769310801574,0.03,89120.0,89112.0,0.35969139]
[1769310802620,0.03,89119.0,89112.0,0.35969139]
[1769310803656,0.03,89123.0,89112.0,0.35969139]
[1769310803843,0.03,89121.0,89112.0,0.35969139]
[1769310804917,0.03,89124.0,89112.0,0.35969139]
[1769310805147,0.03,89122.0,89112.0,0.35969139]
[1769310805533,0.03,89120.0,89112.0,0.35969139]
[1769310806541,0.03,89125.0,89112.0,0.35969139]
[1769310806746,0.03,89123.0,89112.0,0.35969139]
[1769310807056,0.03,89121.0,89112.0,0.35969139]
[1769310808211,0.14225486,89121.0,89112.0,0.35969139]
[1769310808452,0.14225486,89120.0,89112.0,0.35969139]
[1769310808659,0.03,89118.0,89112.0,0.35969139]
[1769310808863,0.14225486,89118.0,89112.0,0.18971016]
[1769310809071,0.03,89118.0,89112.0,0.18971016]
[1769310809890,0.03,89117.0,89113.0,0.17891771]
[1769310810237,0.03,89117.0,89113.0,0.36862787]
[1769310810892,0.03,89116.0,89113.0,0.36862787]
[1769310811996,0.03,89125.0,89113.0,0.36862787]
[1769310812195,0.03,89123.0,89113.0,0.36862787]
[1769310812497,0.03,89121.0,89113.0,0.36862787]
[1769310813293,0.15403968,89121.0,89111.0,4.755e-05]
[1769310813469,0.03,89119.0,89111.0,4.755e-05]
[1769310814513,0.03,89124.0,89111.0,4.755e-05]
[1769310814673,0.03,89122.0,89111.0,4.755e-05]
[1769310814876,0.03,89120.0,89111.0,4.755e-05]
[1769310815849,0.03,89123.0,89111.0,4.755e-05]
[1769310816040,0.03,89121.0,89111.0,4.755e-05]
[1769310816539,0.03,89119.0,89111.0,4.755e-05]
[1769310817718,0.03,89123.0,89111.0,4.755e-05]
[1769310817918,0.03,89121.0,89111.0,4.755e-05]
[1769310818319,0.03,89119.0,89111.0,4.755e-05]
[1769310819322,0.03,89118.0,89111.0,4.755e-05]
[1769310820490,0.03,89117.0,89111.0,4.755e-05]
[1769310821449,0.03,89116.0,89112.0,0.1642281]
[1769310822518,0.03,89115.0,89112.0,0.3411081]
[1769310822673,0.03,89115.0,89113.0,0.1642281]
[1769310823477,0.03,89123.0,89113.0,0.1642281]
[1769310823727,0.03,89121.0,89113.0,0.1642281]
[1769310824085,0.03,89119.0,89113.0,0.1642281]
[1769310825359,0.03,89118.0,89113.0,0.1642281]
[1769310826328,0.03,89123.0,89113.0,0.1642281]
[1769310826495,0.03,89121.0,89113.0,0.1642281]
[1769310826902,0.03,89119.0,89113.0,0.1642281]
[1769310827985,0.03,89123.0,89113.0,0.1642281]
[1769310828141,0.03,89121.0,89113.0,0.1642281]
[1769310828526,0.03,89119.0,89113.0,0.1642281]
[1769310829575,0.03,89118.0,89113.0,0.1642281]
[1769310830440,0.03,89117.0,89113.0,0.1642281]
[1769310832034,0.03,89123.0,89113.0,0.1642281]
[1769310832254,0.03,89121.0,89113.0,0.1642281]
[1769310832688,0.03,89119.0,89113.0,0.1642281]
[1769310833316,0.03,89119.0,89113.0,0.3411081]
[1769310833668,0.03,89124.0,89113.0,0.3411081]
[1769310833900,0.03,89122.0,89113.0,0.3411081]
[1769310834114,0.03,89120.0,89113.0,0.3411081]
[1769310834310,0.03,89120.0,89114.0,0.1642281]
[1769310834761,0.01177975,89125.0,89114.0,0.1642281]
[1769310834983,0.01177975,89125.0,89115.0,0.3411081]
[1769310835143,0.03,89124.0,89115.0,0.3411081]
[1769310835349,0.03,89122.0,89115.0,0.3411081]
[1769310835552,0.03,89120.0,89115.0,0.3411081]
[1769310835760,0.03,89120.0,89115.0,0.34081683]
[1769310835962,0.03,89120.0,89115.0,0.34054734]
[1769310836470,0.03,89120.0,89116.0,0.16175254]
[1769310836653,0.03,89119.0,89116.0,0.15804118]
[1769310837171,0.03,89119.0,89116.0,0.15787224]
[1769310837794,0.01177975,89125.0,89116.0,0.15787224]
[1769310837795,0.03,89118.0,89116.0,0.15787224]
[1769310838512,0.03,89118.0,89117.0,0.3411081]
[1769310840361,0.03,89118.0,89117.0,0.34064664]
[1769310840569,0.03,89118.0,89117.0,0.32936255]
[1769310840799,0.03,89118.0,89111.0,4.755e-05]
[1769310841007,0.17602653,89131.0,89112.0,0.1642281]
[1769310841213,0.17829109,89130.0,89113.0,0.17688]
[1769310842094,0.03,89129.0,89113.0,0.17688]
[1769310847993,0.03,89128.0,89113.0,0.17688]
[1769310851132,0.03,89125.0,89113.0,0.17688]
[1769310853824,0.14233586,89125.0,89113.0,0.17688]
[1769310854043,0.03,89123.0,89113.0,0.17688]
[1769310855066,0.03,89122.0,89113.0,0.17688]
[1769310856026,0.03,89124.0,89113.0,0.17688]
[1769310857045,0.1423358,89124.0,89113.0,0.17688]
[1769310857266,0.03,89122.0,89113.0,0.17688]
[1769310857588,0.1423358,89122.0,89113.0,0.17688]
[1769310857725,0.03,89120.0,89113.0,0.17688]
[1769310857925,0.1423358,89120.0,89113.0,0.17688]
[1769310858141,0.08986612,89126.0,89113.0,0.17688]
[1769310858142,0.03,89118.0,89113.0,0.17688]
[1769310858947,0.03,89118.0,89114.0,0.17797615]
[1769310859114,0.03,89117.0,89114.0,0.17797615]
[1769310859334,0.03,89117.0,89114.0,0.16898932]
[1769310859512,0.03,89117.0,89115.0,0.17797615]
[1769310860217,0.03,89116.0,89115.0,0.17797615]
[1769310861458,0.03,89127.0,89115.0,0.17797615]
[1769310865891,0.14233703,89127.0,89115.0,0.17797615]
[1769310866097,0.03,89125.0,89115.0,0.17683052]
[1769310866297,0.03,89125.0,89111.0,4.755e-05]
[1769310867061,0.20070723,89126.0,89111.0,4.755e-05]
[1769310867267,0.03,89124.0,89111.0,4.755e-05]
[1769310887284,0.03,89123.0,89111.0,4.755e-05]
[1769310888370,0.03,89124.0,89111.0,4.755e-05]
[1769310895547,0.03,89124.0,89110.0,0.17217753]
[1769310895753,0.03004753,89124.0,89110.0,0.17167124]
[1769310903095,0.03,89122.0,89109.0,0.0001492]
[1769310903312,0.03,89118.0,89109.0,0.0001492]
[1769310903511,0.32667145,89118.0,89109.0,0.0001492]
[1769310903681,0.03,89116.0,89109.0,0.0001492]
[1769310904490,0.03,89116.0,89101.0,0.17972465]
[1769310904694,0.03,89116.0,89102.0,0.1895469]
[1769310906130,0.03,89116.0,89103.0,0.18971577]
[1769310906932,0.03,89117.0,89103.0,0.18971577]
[1769310909931,0.14230238,89117.0,89103.0,0.18971577]
[1769310910536,0.03,89117.0,89103.0,0.18971577]
[1769310912777,0.03,89116.0,89103.0,0.37490444]
[1769310913811,0.21797445,89122.0,89103.0,0.37490444]
[1769310915948,0.21797445,89122.0,89104.0,0.19341899]
[1769310916761,0.03,89120.0,89104.0,0.19341899]
[1769310917955,0.03,89121.0,89104.0,0.19341899]
[1769310920047,0.03,89121.0,89104.0,0.19308127]
[1769310925847,0.03371561,89124.0,89100.0,0.0001492]
[1769310925848,0.21797445,89118.0,89100.0,0.0001492]
[1769310926379,0.21797445,89118.0,89100.0,0.19356819]
[1769310926747,0.20200257,89117.0,89100.0,0.19356819]
[1769310926927,0.03,89116.0,89100.0,0.19356819]
[1769310927328,0.03,89116.0,89101.0,0.19341899]
[1769310928345,0.14222365,89116.0,89101.0,0.19341899]
[1769310928553,0.03,89114.0,89101.0,0.19341899]
[1769310929277,0.03,89114.0,89101.0,0.1932502]
[1769310929688,0.03,89112.0,89101.0,0.1932502]
[1769310930372,0.03,89110.0,89100.0,0.0001492]
[1769310930527,0.14222365,89110.0,89100.0,0.0001492]
[1769310930731,0.03,89108.0,89100.0,0.0001492]
[1769310930928,0.14222365,89108.0,89100.0,0.0001492]
[1769310931129,0.03,89106.0,89100.0,0.0001492]
[1769310931367,0.14222365,89106.0,89100.0,0.0001492]
[1769310931566,0.03,89104.0,89100.0,0.19356819]
[1769310932525,0.03,89103.0,89100.0,0.19356819]
[1769310933750,0.03,89106.0,89100.0,0.19356819]
[1769310934084,0.03,89106.0,89100.0,0.0001492]
[1769310934443,0.03,89104.0,89100.0,0.0001492]
[1769310934658,0.14218613,89104.0,89100.0,0.0001492]
[1769310934862,0.03,89104.0,89100.0,0.0001492]
[1769310935062,0.03,89102.0,89100.0,0.0001492]
[1769310935313,0.14215811,89102.0,89100.0,0.0001492]
[1769310936681,0.03,89101.0,89100.0,0.0001492]
[1769310937155,0.03,89101.0,89095.0,0.18489446]
[1769310937305,0.03,89101.0,89083.0,0.0336725]
[1769310937306,0.0636725,89101.0,89097.0,0.1713025]
[1769310937483,0.08971417,89108.0,89098.0,0.35619696]
[1769310937484,0.03,89099.0,89098.0,0.35619696]
[1769310937899,0.03,89099.0,89098.0,0.18489446]
[1769310938355,0.32441551,89113.0,89098.0,0.18489446]
[1769310938589,0.03,89112.0,89098.0,0.18489446]
[1769310938746,0.03,89104.0,89098.0,0.18489446]
[1769310941685,0.03,89112.0,89098.0,0.18489446]
[1769310941894,0.0336725,89108.0,89098.0,0.18489446]
[1769310942121,0.03,89107.0,89098.0,0.18489446]
[1769310943195,0.03,89105.0,89098.0,0.18489446]
[1769310947405,0.03,89112.0,89098.0,0.18489446]
[1769310947605,0.03,89104.0,89098.0,0.18489446]
[1769310947860,0.03,89104.0,89087.0,0.0336725]
[1769310948070,0.03,89104.0,89091.0,0.18504366]
[1769310948277,0.0636725,89104.0,89091.0,0.18504366]
[1769310948506,0.0636725,89104.0,89092.0,0.1713025]
[1769310948716,0.0636725,89104.0,89091.0,0.0001492]
[1769310948717,0.0636725,89104.0,89093.0,0.1713025]
[1769310948926,0.0636725,89104.0,89094.0,0.18489446]
[1769310950397,0.1120891,89103.0,89094.0,0.18489446]
[1769310950593,0.03,89102.0,89094.0,0.18489446]
[1769310950997,0.03,89102.0,89095.0,0.18489446]
[1769310952183,0.03,89101.0,89095.0,0.18489446]
[1769310956996,0.03,89100.0,89095.0,0.18489446]
[1769310959271,0.03,89100.0,89091.0,0.0001492]
[1769310959907,0.03,89099.0,89091.0,0.0001492]
[1769310960104,0.1420891,89099.0,89091.0,0.0001492]
[1769310960361,0.15708771,89106.0,89091.0,0.0001492]
[1769310960584,0.03367394,89104.0,89091.0,0.0001492]
[1769310960991,0.03,89103.0,89091.0,0.0001492]
[1769310961690,0.03,89101.0,89091.0,0.0001492]
[1769310972080,0.03,89100.0,89091.0,0.0001492]
[1769310972278,0.06367587,89100.0,89091.0,0.0001492]
[1769310972425,0.03,89098.0,89091.0,0.0001492]
[1769310972846,0.03367587,89097.0,89091.0,0.0001492]
[1769310973201,0.03,89096.0,89091.0,0.0001492]
[1769310973475,0.14224834,89096.0,89091.0,0.0001492]
[1769310973863,0.03,89094.0,89091.0,0.0001492]
[1769310974041,0.14224834,89094.0,89091.0,0.00062479]
[1769310974447,0.13446056,89092.0,89065.0,0.1783875]
[1769310974647,0.13446056,89092.0,89063.0,0.0002]
[1769310974648,0.03,89085.0,89066.0,0.17516303]
[1769310974859,0.03,89083.0,89066.0,0.3746233]
[1769310975047,0.14224834,89083.0,89066.0,0.35355053]
[1769310975382,0.03,89081.0,89066.0,0.35355053]
[1769310975704,0.14224834,89081.0,89066.0,0.35355053]
[1769310976191,0.03,89079.0,89066.0,0.35355053]
[1769310976488,0.14224834,89079.0,89066.0,0.35355053]
[1769310976690,0.14224834,89079.0,89066.0,0.1783875]
[1769310977024,0.03,89075.0,89066.0,0.1783875]
[1769310977763,0.03,89077.0,89066.0,0.1783875]
[1769310977965,0.03,89077.0,89066.0,0.14264355]
[1769310978170,0.03,89077.0,89063.0,0.0002]
[1769310979215,0.04598077,89076.0,89063.0,0.0002]
[1769310979531,0.04598077,89076.0,89058.0,0.03388536]
[1769310979532,0.03,89063.0,89035.0,0.00449205]
[1769310979680,0.03,89063.0,89040.0,0.28897427]
[1769310979681,0.14188963,89063.0,89040.0,0.28897427]
[1769310979902,0.03,89061.0,89040.0,0.28897427]
[1769310980106,0.03,89061.0,89040.0,0.30020517]
[1769310980367,0.04122825,89061.0,89042.0,0.1783875]
[1769310980507,0.03,89061.0,89044.0,0.1783875]
[1769310980726,0.030475,89061.0,89047.0,0.35355053]
[1769310980934,0.030475,89061.0,89048.0,0.17626696]
[1769310981139,0.030475,89061.0,89036.0,0.01123141]
[1769310981140,0.030475,89061.0,89051.0,0.1783875]
[1769310981512,0.03369213,89062.0,89052.0,0.00222646]
[1769310981720,0.03369213,89062.0,89054.0,0.17293658]
[1769310981927,0.03369213,89062.0,89054.0,0.3457439]
[1769310982135,0.03369213,89062.0,89054.0,0.32133644]
[1769310982316,0.03369213,89062.0,89054.0,0.31435959]
[1769310982524,0.03369213,89062.0,89054.0,0.30587535]
[1769310982742,0.03369213,89062.0,89054.0,0.29670411]
[1769310982948,0.03369213,89062.0,89055.0,0.1783875]
[1769310983167,0.03369213,89062.0,89055.0,0.1776866]
[1769310983357,0.03369213,89062.0,89055.0,0.33711387]
[1769310983570,0.03369213,89062.0,89055.0,0.33405602]
[1769310983869,0.03369213,89062.0,89055.0,0.32406067]
[1769310984068,0.03369213,89062.0,89055.0,0.30907366]
[1769310984246,0.03369213,89062.0,89055.0,0.29682305]
[1769310984492,0.03369213,89062.0,89055.0,0.28101989]
[1769310984674,0.03369213,89062.0,89055.0,0.26747198]
[1769310984874,0.03369213,89062.0,89055.0,0.25166069]
[1769310985102,0.03369213,89062.0,89055.0,0.24714222]
[1769310985263,0.03369213,89062.0,89055.0,0.24488238]
[1769310986108,0.02981279,89070.0,89055.0,0.24488238]
[1769310986404,0.06368994,89069.0,89055.0,0.24488238]
[1769310986600,0.03,89067.0,89055.0,0.24488238]
[1769310987257,0.03,89067.0,89055.0,0.06971935]
[1769310987526,0.03,89067.0,89056.0,0.17516303]
[1769310987727,0.03,89067.0,89056.0,0.16292861]
[1769310987929,0.03,89067.0,89056.0,0.15069441]
[1769310988131,0.03,89065.0,89056.0,0.14824755]
[1769310988311,0.03,89063.0,89056.0,0.14824755]
[1769310988635,0.03,89061.0,89056.0,0.14824755]
[1769310988863,0.01858567,89068.0,89055.0,0.06971935]
[1769310989700,0.03,89068.0,89055.0,0.06971935]
[1769310990510,0.18728096,89064.0,89052.0,0.000475]
[1769310990808,0.03,89063.0,89052.0,0.000475]
[1769310991329,0.21728096,89061.0,89052.0,0.000475]
[1769310991682,0.03,89057.0,89052.0,0.000475]
[1769310991863,0.01122901,89055.0,89052.0,0.000475]
[1769310992060,0.01122888,89056.0,89052.0,0.000475]
[1769310992788,0.01122901,89055.0,89052.0,0.000475]
[1769310993147,0.01122888,89056.0,89052.0,0.000475]
[1769310993460,0.1874511,89054.0,89052.0,0.000475]
[1769310993872,0.19867998,89056.0,89052.0,0.000475]
[1769310995100,0.01122888,89056.0,89052.0,0.000475]
[1769310995747,0.1874511,89054.0,89052.0,0.000475]
[1769310995958,0.36844636,89053.0,89052.0,0.000475]
[1769310996162,0.01123002,89047.0,89038.0,0.1783875]
[1769310996431,0.000475,89047.0,89038.0,0.1783875]
[1769310996637,0.01170502,89047.0,89033.0,0.0001954]
[1769310997118,0.1874511,89045.0,89033.0,0.0001954]
[1769310997263,0.18099526,89045.0,89030.0,0.00869609]
[1769310997470,0.000475,89047.0,89030.0,0.00869609]
[1769310997471,0.1874511,89043.0,89030.0,0.00869609]
[1769310997674,0.1874511,89042.0,89030.0,0.00869609]
[1769310997909,0.000475,89047.0,89030.0,0.00869609]
[1769310998088,0.2174,89046.0,89031.0,0.18624724]
[1769310998303,0.01123027,89045.0,89031.0,0.18624724]
[1769310998512,0.01170502,89047.0,89031.0,0.18624724]
[1769310998712,0.01123015,89046.0,89031.0,0.18624724]
[1769310998910,0.0112304,89044.0,89031.0,0.18624724]
[1769310999116,0.01123065,89042.0,89031.0,0.18624724]
[1769310999323,0.06738344,89043.0,89030.0,0.00869609]
[1769310999324,0.01123078,89041.0,89030.0,0.00869609]
[1769310999526,0.01123065,89042.0,89030.0,0.00869609]
[1769310999729,0.0112309,89040.0,89030.0,0.00869609]
[1769311000096,0.01123078,89041.0,89030.0,0.00869609]
[1769311000568,0.01123065,89042.0,89030.0,0.00869609]
[1769311001151,0.01123027,89045.0,89030.0,0.19494333]
[1769311001353,0.1116013,89045.0,89030.0,0.19494333]
[1769311001666,0.0112304,89044.0,89030.0,0.19494333]
[1769311002058,0.03,89043.0,89030.0,0.19494333]
[1769311003263,0.03,89040.0,89030.0,0.19494333]
[1769311004165,0.03,89040.0,89030.0,0.00869609]
[1769311004166,0.03,89037.0,89030.0,0.00869609]
[1769311005553,0.03,89036.0,89030.0,0.00869609]
[1769311006317,0.03,89036.0,89030.0,0.19494333]
[1769311006531,0.03,89038.0,89030.0,0.19494333]
[1769311008459,0.03,89038.0,89030.0,0.00869609]
[1769311008659,0.03,89037.0,89030.0,0.00869609]
[1769311009698,0.08221481,89038.0,89030.0,0.00869609]
[1769311009933,0.03,89043.0,89030.0,0.00869609]
[1769311010610,0.04123052,89043.0,89030.0,0.00869609]
[1769311010825,0.03,89041.0,89030.0,0.00869609]
[1769311011416,0.04123078,89041.0,89030.0,0.00869609]
[1769311011711,0.03,89039.0,89030.0,0.00869609]
[1769311012572,0.01123078,89041.0,89030.0,0.00869609]
[1769311012573,0.03,89038.0,89030.0,0.00869609]
[1769311013676,0.03,89037.0,89030.0,0.00869609]
[1769311014180,0.172995,89047.0,89037.0,0.19624724]
[1769311014378,0.172995,89047.0,89037.0,0.19063217]
[1769311014591,0.172995,89047.0,89037.0,0.18624724]
[1769311014807,0.03,89046.0,89037.0,0.17950598]
[1769311015013,0.03,89046.0,89030.0,0.18857709]
[1769311015217,0.03,89046.0,89031.0,0.18624724]
[1769311018004,0.04123015,89046.0,89031.0,0.18624724]
[1769311018256,0.04123015,89046.0,89031.0,0.179881]
[1769311018467,0.04123015,89046.0,89032.0,0.18624724]
[1769311018638,0.03,89046.0,89032.0,0.18624724]
[1769311018848,0.03,89044.0,89032.0,0.18624724]
[1769311019831,0.03,89046.0,89032.0,0.18624724]
[1769311020304,0.03,89044.0,89032.0,0.18624724]
[1769311021412,0.03,89043.0,89032.0,0.18624724]
[1769311022388,0.03,89042.0,89032.0,0.18624724]
[1769311022904,0.08959738,89050.0,89031.0,0.18559576]
[1769311023246,0.17252,89050.0,89042.0,0.00438493]
[1769311023528,0.03,89049.0,89038.0,0.18179924]
[1769311023685,0.03,89049.0,89038.0,0.18046661]
[1769311023888,0.03,89049.0,89031.0,0.01170704]
[1769311023889,0.03,89049.0,89040.0,0.18179924]
[1769311024093,0.03,89049.0,89040.0,0.18118787]
[1769311024282,0.03,89048.0,89033.0,0.18559576]
[1769311025432,0.20820995,89051.0,89033.0,0.18559576]
[1769311026852,0.20820995,89051.0,89033.0,0.19289897]
[1769311027089,0.18374939,89052.0,89031.0,0.000475]
[1769311027090,0.03,89043.0,89031.0,0.000475]
[1769311027291,0.03,89039.0,89031.0,0.000475]
[1769311028246,0.03,89041.0,89031.0,0.000475]
[1769311029370,0.21944047,89043.0,89031.0,0.000475]
[1769311029736,0.20820995,89043.0,89031.0,0.000475]
[1769311029932,0.21944047,89043.0,89031.0,0.000475]
[1769311030141,0.03,89041.0,89031.0,0.000475]
[1769311031263,0.03,89040.0,89031.0,0.000475]
[1769311032254,0.03,89042.0,89031.0,0.000475]
[1769311034925,0.03,89041.0,89031.0,0.17640349]
[1769311035132,0.14213222,89041.0,89031.0,0.17528273]
[1769311035408,0.03,89039.0,89032.0,0.00721283]
[1769311035558,0.00552472,89038.0,89032.0,0.17567556]
[1769311035774,0.03,89037.0,89032.0,0.16596886]
[1769311035975,0.03,89037.0,89033.0,0.17592849]
[1769311036137,0.000475,89039.0,89033.0,0.17592849]
[1769311036348,0.000475,89039.0,89034.0,0.00042312]
[1769311037161,0.03,89038.0,89034.0,0.00042312]
[1769311038149,0.03,89038.0,89031.0,0.00042822]
[1769311038528,0.03,89038.0,89030.0,0.00869609]
[1769311038725,0.03,89037.0,89028.0,0.17592849]
[1769311038963,0.03,89037.0,89028.0,0.16906879]
[1769311039279,0.03,89037.0,89028.0,0.15932915]
[1769311039484,0.03,89037.0,89028.0,0.15153703]
[1769311039678,0.03,89036.0,89028.0,0.15059915]
[1769311039829,0.03,89036.0,89028.0,0.14865091]
[1769311040030,0.03,89036.0,89028.0,0.14085834]
[1769311040230,0.000475,89039.0,89024.0,0.01123292]
[1769311040439,0.000475,89039.0,89028.0,0.17592849]
[1769311040636,0.000475,89039.0,89030.0,0.17592849]
[1769311040878,0.000475,89039.0,89030.0,0.16907642]
[1769311041149,0.03,89038.0,89030.0,0.15933395]
[1769311041373,0.11213222,89038.0,89030.0,0.15543978]
[1769311041531,0.000475,89039.0,89030.0,0.13791316]
[1769311041711,0.000475,89039.0,89030.0,0.13789568]
[1769311041911,0.000475,89039.0,89030.0,0.13539125]
[1769311042714,0.000475,89039.0,89032.0,0.17592849]
[1769311042912,0.000475,89039.0,89032.0,0.1753672]
[1769311043130,0.000475,89039.0,89032.0,0.17480591]
[1769311045551,0.03,89031.0,89021.0,0.0112333]
[1769311045749,0.03,89031.0,89022.0,0.19143094]
[1769311046082,0.03,89031.0,89024.0,0.19143094]
[1769311046284,0.03,89031.0,89025.0,0.19143094]
[1769311046445,0.03,89031.0,89027.0,0.19143094]
[1769311046653,0.03,89030.0,89028.0,0.19143094]
[1769311046852,0.03,89030.0,89029.0,0.36735943]
[1769311048770,0.000475,89039.0,89029.0,0.36735943]
[1769311048991,0.030475,89039.0,89029.0,0.36735943]
[1769311049312,0.03,89037.0,89029.0,0.36735943]
[1769311050201,0.03,89036.0,89029.0,0.36735943]
[1769311051003,0.00811605,89039.0,89020.0,0.28936975]
[1769311051206,0.03,89038.0,89024.0,0.17592849]
[1769311051382,0.03,89036.0,89024.0,0.17592849]
[1769311051581,0.00811605,89039.0,89024.0,0.36735943]
[1769311051769,0.000475,89039.0,89025.0,0.17592849]
[1769311051966,0.12022864,89039.0,89025.0,0.17592849]
[1769311052172,0.11003752,89038.0,89026.0,0.17592849]
[1769311052376,0.00764105,89037.0,89026.0,0.17592849]
[1769311052615,0.000475,89039.0,89028.0,0.17592849]
[1769311052825,0.030475,89039.0,89028.0,0.17592849]
[1769311053016,0.03,89037.0,89028.0,0.17592849]
[1769311053989,0.03,89036.0,89028.0,0.17592849]
[1769311054565,0.000475,89039.0,89023.0,0.01123305]
[1769311054768,0.000475,89039.0,89023.0,0.18962478]
[1769311055007,0.000475,89039.0,89025.0,0.18962478]
[1769311055209,0.000475,89039.0,89026.0,0.18055514]
[1769311055411,0.000475,89039.0,89027.0,0.18962478]
[1769311055573,0.030475,89039.0,89028.0,0.00061811]
[1769311056576,0.000475,89039.0,89028.0,0.00061811]
[1769311057202,0.030475,89039.0,89028.0,0.00061811]
[1769311057626,0.01122989,89048.0,89027.0,0.18962478]
[1769311057835,0.19256376,89047.0,89028.0,0.18881583]